bitfinex/quotes_ETHUSD_20220310
["timestamp","ask_amount","ask_price","bid_price","bid_amount"]
[1646887625891,0.04845936,2608.1,2607.3,0.95931]
[1646887626091,0.04845936,2608.1,2607.4,3.5]
[1646887626290,0.04845936,2608.1,2607.8,1.19478799]
[1646887626692,0.05779339,2608.3,2607.8,1.19478799]
[1646887627333,0.05779339,2608.3,2607.4,3.5]
[1646887627533,0.05779339,2608.3,2607.3,3.3228757]
[1646887627734,0.05779339,2608.3,2607.0,0.07976066]
[1646887627735,0.05648778,2608.2,2607.0,0.07976066]
[1646887628332,0.05648778,2608.2,2606.8,4.54144256]
[1646887628538,0.05712799,2608.1,2606.8,4.54144256]
[1646887628737,0.91793461,2607.7,2607.1,0.95475833]
[1646887628938,0.97399642,2607.7,2607.1,0.95475833]
[1646887629139,0.97399642,2607.7,2607.0,3.5]
[1646887629140,0.91793461,2607.7,2607.0,3.5]
[1646887629338,0.05672685,2607.6,2606.8,1.04144256]
[1646887629539,0.05672685,2607.6,2606.5,0.005834]
[1646887629738,0.05672685,2607.6,2606.6,1.59195391]
[1646887630337,0.05672685,2607.6,2606.8,0.95463289]
[1646887631015,0.05672685,2607.6,2606.9,1.59188868]
[1646887631205,0.05672685,2607.6,2607.2,1.03287909]
[1646887632209,0.05672685,2607.6,2606.8,0.95949]
[1646887632408,0.011667,2607.8,2606.9,5.09178629]
[1646887632609,0.011667,2607.8,2607.0,1.59178629]
[1646887633209,0.011667,2607.8,2607.4,1.18910576]
[1646887633710,0.3759,2608.2,2607.4,1.18910576]
[1646887633711,0.07072308,2608.1,2607.4,1.18910576]
[1646887634312,0.011667,2608.1,2607.2,0.445]
[1646887634512,0.017787,2607.7,2607.1,3.5]
[1646887634735,0.05197829,2607.6,2606.7,0.07079786]
[1646887634933,0.05197829,2607.6,2606.8,1.59174694]
[1646887635333,0.05197829,2607.6,2607.1,1.15026404]
[1646887635534,0.05197829,2607.6,2607.2,1.59174694]
[1646887635734,0.017787,2607.7,2607.2,1.59174694]
[1646887636138,0.017787,2607.7,2606.7,0.07079786]
[1646887636438,0.3759,2607.5,2606.8,1.59171622]
[1646887636638,0.3759,2607.5,2606.9,1.59171622]
[1646887636639,0.05053197,2607.4,2606.9,1.59171622]
[1646887636841,0.06405697,2607.4,2607.0,1.59171622]
[1646887637038,11.90995697,2607.4,2606.5,0.005834]
[1646887637239,0.05387974,2607.3,2606.8,1.01177694]
[1646887637439,0.05387974,2607.3,2606.9,1.59181281]
[1646887637639,0.05080174,2607.3,2606.9,1.59181281]
[1646887638047,0.05080174,2607.3,2605.9,0.69057972]
[1646887638048,12.48057174,2607.3,2605.9,0.69057972]
[1646887638241,0.018825,2607.0,2606.0,1.59209752]
[1646887638499,11.8459,2606.7,2606.1,1.59209752]
[1646887638689,0.018825,2607.0,2605.7,5.78267724]
[1646887638690,0.04729304,2606.6,2605.7,5.78267724]
[1646887638888,0.018825,2607.0,2605.8,3.4386363]
[1646887639089,0.018825,2607.0,2606.6,0.87256393]
[1646887639495,7.44653489,2607.4,2606.7,1.59193587]
[1646887639496,0.387567,2607.3,2606.7,1.59193587]
[1646887639694,0.0502441,2607.2,2606.7,1.59193587]
[1646887639890,0.0502441,2607.2,2606.7,5.09193587]
[1646887640090,0.04875301,2607.4,2606.8,1.59193587]
[1646887640290,0.05849556,2607.6,2606.8,1.59193587]
[1646887640590,0.05849556,2607.6,2606.9,1.59193587]
[1646887640791,0.05849556,2607.6,2606.6,0.87256393]
[1646887640792,0.3759,2607.1,2606.6,0.87256393]
[1646887640990,0.3759,2607.1,2605.9,1.445]
[1646887640991,0.05759932,2607.0,2606.2,3.5]
[1646887641195,0.07189432,2607.0,2606.3,1.59203386]
[1646887641394,0.07189432,2607.0,2606.4,1.59203386]
[1646887641595,0.07189432,2607.0,2606.5,1.59203386]
[1646887641794,0.07189432,2607.0,2606.6,1.59203386]
[1646887641795,11.8459,2606.9,2606.6,1.59203386]
[1646887641997,0.05224723,2606.8,2605.8,0.75940637]
[1646887642238,0.016657,2606.7,2605.9,1.59211804]
[1646887642441,0.06610634,2606.7,2605.9,1.59211804]
[1646887642643,0.06610634,2606.7,2605.7,0.69057972]
[1646887642644,1.1824129,2606.3,2606.0,1.59211804]
[1646887642843,0.05959802,2606.2,2606.1,1.59211804]
[1646887643043,0.07086006,2606.7,2606.2,0.11919604]
[1646887643245,0.07086006,2606.7,2606.3,1.59211804]
[1646887643545,0.04545281,2606.5,2606.2,0.11919604]
[1646887644441,0.05256537,2606.3,2606.2,0.11919604]
[1646887644648,12.52132873,2606.3,2606.2,0.11919604]
[1646887644848,16.02132873,2606.3,2606.2,0.11919604]
[1646887645045,11.8459,2605.7,2605.4,0.03516737]
[1646887645247,0.0463075,2605.6,2605.5,1.59241647]
[1646887645645,0.0463075,2605.6,2605.5,1.83815609]
[1646887646093,0.0168,2606.1,2605.5,2.9576135]
[1646887646396,0.05504162,2606.1,2605.7,0.24573962]
[1646887646592,0.05504162,2606.1,2605.9,0.24573962]
[1646887646792,11.52504162,2606.1,2606.0,0.24573962]
[1646887647196,12.48525162,2606.1,2606.0,0.24573962]
[1646887647698,12.52776659,2605.9,2605.4,1.11464102]
[1646887647892,0.049201,2605.8,2605.5,1.59252662]
[1646887648293,0.06505723,2606.1,2605.5,1.59252662]
[1646887648695,11.47,2606.0,2605.5,1.59252662]
[1646887648893,0.04278421,2605.9,2605.5,1.59252662]
[1646887650542,12.80617,2606.0,2605.4,0.03516737]
[1646887650543,12.48359272,2605.7,2605.4,0.03516737]
[1646887650749,12.48359272,2605.7,2605.0,30.0]
[1646887650750,11.47,2605.4,2605.0,30.0]
[1646887650941,0.0448077,2605.3,2605.0,30.0]
[1646887651342,11.466843,2605.2,2605.0,30.0]
[1646887651645,0.05244608,2605.1,2605.0,30.0]
[1646887652644,0.96076,2605.3,2605.0,30.0]
[1646887652945,0.0501918,2605.5,2605.0,30.0]
[1646887653348,0.013849,2605.8,2605.7,1.09045556]
[1646887653598,1.92208143,2606.0,2605.1,0.06973415]
[1646887654200,11.47,2605.9,2605.1,0.06973415]
[1646887654600,11.47,2605.9,2605.7,1.0110878]
[1646887654903,11.47,2605.9,2605.1,0.06973415]
[1646887655099,3.25828143,2606.0,2605.1,0.06973415]
[1646887655302,0.04448658,2605.9,2605.1,0.06973415]
[1646887655505,2.2084,2606.4,2605.1,2.83451107]
[1646887655506,3.21224082,2606.4,2605.1,2.83451107]
[1646887655702,2.21224082,2606.4,2605.2,0.07889789]
[1646887655902,0.04745952,2606.3,2605.2,0.07889789]
[1646887656303,11.47,2605.9,2605.4,1.22964697]
[1646887656701,11.51394572,2605.9,2605.4,1.22964697]
[1646887656901,0.013987,2605.5,2605.0,30.0]
[1646887657100,1.09832062,2606.0,2605.0,30.0]
[1646887657101,0.011667,2606.0,2605.0,30.0]
[1646887657343,11.857567,2606.0,2605.2,0.08876146]
[1646887657547,0.04805578,2605.9,2605.2,0.08876146]
[1646887657944,0.013368,2605.3,2605.0,30.0]
[1646887658142,0.013793,2605.5,2605.1,1.06054275]
[1646887658541,11.47,2605.7,2605.1,1.06054275]
[1646887658742,0.04805578,2605.9,2605.1,1.06054275]
[1646887658943,0.04612326,2606.2,2605.2,0.07096175]
[1646887659143,0.04612326,2606.2,2605.3,0.07143882]
[1646887659344,0.71874299,2606.6,2605.3,0.07143882]
[1646887659542,0.04803987,2606.5,2605.3,0.07143882]
[1646887659746,10.56066279,2606.4,2605.3,0.07143882]
[1646887660747,1.19312857,2606.1,2605.5,1.20489325]
[1646887661004,10.56066279,2606.0,2605.5,1.20489325]
[1646887661193,1.19312857,2606.1,2605.5,1.20489325]
[1646887661593,12.66312857,2606.1,2605.5,1.20489325]
[1646887661794,12.66312857,2606.1,2605.3,0.07143882]
[1646887661997,11.47,2605.9,2605.0,30.07036749]
[1646887662495,12.466847,2605.9,2605.0,30.07036749]
[1646887663096,0.0423554,2606.1,2605.7,1.05771086]
[1646887663498,0.1837028,2606.6,2605.7,1.14775562]
[1646887664099,12.68277143,2606.3,2605.7,1.14775562]
[1646887664751,12.73360613,2606.3,2605.2,0.08033155]
[1646887665354,11.89318403,2606.1,2605.2,0.08033155]
[1646887665553,12.43032,2605.9,2605.2,0.08033155]
[1646887665755,0.98380242,2605.7,2605.2,1.23199289]
[1646887666156,12.47,2605.9,2605.7,0.71499192]
[1646887666558,0.04392032,2606.3,2605.7,0.71499192]
[1646887666757,0.96021,2606.3,2605.7,0.71499192]
[1646887666957,11.47,2606.2,2605.7,0.71499192]
[1646887667159,0.05376842,2606.1,2605.7,0.71499192]
[1646887667557,11.47,2605.8,2605.7,0.71499192]
[1646887667760,11.51144097,2605.8,2605.7,0.71499192]
[1646887668159,12.51144097,2605.8,2605.7,0.71499192]
[1646887668995,12.50828797,2605.8,2605.7,0.71499192]
[1646887670896,12.50513497,2605.8,2605.7,0.71499192]
[1646887671306,12.50513497,2605.8,2604.5,0.69057972]
[1646887671307,11.839594,2605.6,2604.5,0.69057972]
[1646887671503,11.839594,2605.6,2604.0,1.3396866]
[1646887671504,11.89832157,2605.2,2604.6,1.02794392]
[1646887671699,12.59688654,2605.2,2603.9,0.07179842]
[1646887671998,12.59688654,2605.2,2603.9,0.07083842]
[1646887671999,0.04524632,2605.1,2603.9,0.07083842]
[1646887672241,11.839594,2604.8,2603.9,0.07083842]
[1646887672444,11.88566957,2604.8,2603.9,0.07083842]
[1646887672642,12.88566957,2604.8,2603.7,0.08333478]
[1646887672843,12.88251657,2604.8,2603.7,0.08333478]
[1646887673044,11.460541,2604.6,2603.7,0.08333478]
[1646887673250,12.460541,2604.6,2604.1,0.95408869]
[1646887673446,0.0427479,2605.2,2604.2,3.5]
[1646887673645,0.0427479,2605.2,2604.3,0.52259865]
[1646887673646,11.47,2605.2,2604.3,0.52259865]
[1646887673845,2.3178,2605.6,2604.4,0.90809394]
[1646887674045,5.1164,2606.0,2604.6,0.3759]
[1646887674245,1.23389421,2605.8,2605.2,1.11113042]
[1646887674449,1.23389421,2605.8,2605.3,0.08783919]
[1646887674651,11.89413241,2605.6,2604.2,0.08722714]
[1646887674845,0.05420912,2605.5,2604.2,0.08722714]
[1646887675146,0.05420912,2605.5,2604.0,0.08040966]
[1646887675347,11.47,2605.1,2604.0,0.45630966]
[1646887675547,11.46685,2605.1,2604.3,1.0477487]
[1646887675750,11.46685,2605.1,2604.4,0.08930225]
[1646887676000,11.8459,2605.7,2604.5,0.445]
[1646887676195,12.8459,2605.7,2604.6,0.07185754]
[1646887676396,12.8459,2605.7,2603.8,0.69153972]
[1646887676397,11.8459,2605.4,2603.8,0.69153972]
[1646887676595,11.8459,2605.2,2603.8,0.00096]
[1646887676795,9.74604511,2605.3,2603.6,0.69057972]
[1646887676796,11.8459,2605.0,2603.6,0.69057972]
[1646887676995,11.47,2605.0,2603.8,0.0819704]
[1646887677194,12.47,2605.0,2603.8,0.0819704]
[1646887677394,12.47,2605.0,2604.4,0.87368915]
[1646887677395,11.47,2604.9,2604.4,0.87368915]
[1646887677694,0.05122643,2605.2,2604.5,0.0731456]
[1646887677896,7.1958,2605.3,2604.5,0.0731456]
[1646887678095,0.0536134,2605.2,2604.0,0.08224706]
[1646887678304,0.0536134,2605.2,2604.0,0.011667]
[1646887678496,11.8459,2605.0,2604.0,0.011667]
[1646887678696,0.04417753,2604.9,2604.0,0.011667]
[1646887679297,12.5449766,2604.5,2604.0,0.011667]
[1646887679741,12.5449766,2604.5,2603.6,0.00096]
[1646887679742,0.96088,2604.4,2603.6,0.00096]
[1646887679945,0.96088,2604.4,2603.5,0.07989541]
[1646887679946,1.33678,2604.4,2603.5,0.07989541]
[1646887680145,0.3759,2604.4,2603.5,0.07989541]
[1646887680342,13.5416716,2604.5,2603.5,0.07989541]
[1646887680745,2.0716716,2604.5,2603.6,0.99239174]
[1646887680946,2.0716716,2604.5,2603.7,0.06929806]
[1646887681147,12.5416716,2604.5,2603.7,0.06929806]
[1646887681546,13.5416716,2604.5,2603.7,0.06929806]
[1646887682448,13.5385186,2604.5,2603.7,0.06929806]
[1646887682850,13.58980474,2604.5,2603.7,0.06929806]
[1646887683789,13.5385186,2604.5,2603.7,0.06929806]
[1646887683991,11.47,2604.5,2604.0,1.03212935]
[1646887684192,2.415,2605.2,2604.1,0.08904096]
[1646887684390,2.415,2605.2,2604.2,0.07879486]
[1646887685193,12.43097879,2604.9,2604.2,0.07879486]
[1646887685401,1.14329027,2604.5,2604.2,0.07879486]
[1646887685597,1.14329027,2604.5,2603.9,0.01168]
[1646887685598,12.98919027,2604.5,2603.9,0.01168]
[1646887685798,12.98919027,2604.5,2603.6,0.07882411]
[1646887685799,13.98919027,2604.5,2603.6,0.07882411]
[1646887685996,0.0540759,2604.4,2603.6,0.07786411]
[1646887686200,13.61329027,2604.5,2603.6,0.07786411]
[1646887686396,11.47,2604.1,2603.6,0.07786411]
[1646887686597,9.77038963,2603.9,2603.6,0.07786411]
[1646887686996,10.77038963,2603.9,2603.1,0.07869225]
[1646887687243,10.77038963,2603.9,2603.1,0.07773225]
[1646887687446,0.96113,2603.7,2603.1,0.07773225]
[1646887687646,0.96113,2603.7,2603.5,0.08985176]
[1646887687847,9.77038963,2603.9,2603.5,0.08985176]
[1646887688045,11.47,2604.0,2603.5,0.08985176]
[1646887688246,2.29794,2604.2,2603.5,0.08985176]
[1646887688548,1.92204,2604.2,2603.5,0.08985176]
[1646887688949,0.96101,2604.0,2603.5,0.08985176]
[1646887689548,11.47,2604.1,2603.5,0.08985176]
[1646887689747,12.47,2604.1,2603.5,0.08985176]
[1646887690549,11.52893564,2604.5,2603.9,0.91195642]
[1646887690750,11.52893564,2604.5,2604.0,0.08873149]
[1646887690751,11.47,2604.5,2604.0,0.08873149]
[1646887691599,11.47,2604.5,2604.1,1.59328648]
[1646887692001,13.3918,2604.5,2604.1,0.0877421]
[1646887692200,13.3918,2604.5,2603.6,0.07511751]
[1646887692399,13.3918,2604.5,2603.7,1.59340703]
[1646887692602,13.3918,2604.5,2603.8,1.66429427]
[1646887692603,11.47,2604.4,2603.8,1.66429427]
[1646887692801,11.47,2604.4,2603.5,0.09492849]
[1646887692802,1.14708192,2604.0,2603.5,0.09492849]
[1646887693001,1.14708192,2604.0,2603.6,1.59360245]
[1646887693203,1.14708192,2604.0,2603.7,0.08478651]
[1646887693402,1.0,2604.4,2603.7,0.08478651]
[1646887693603,1.51094697,2604.7,2603.8,1.59353686]
[1646887693803,1.51094697,2604.7,2603.9,1.66793457]
[1646887693804,0.51094697,2604.7,2603.9,1.66793457]
[1646887694005,0.51094697,2604.7,2604.0,0.07168921]
[1646887694203,0.51094697,2604.7,2603.4,0.96745428]
[1646887694204,1.92175,2604.6,2603.5,0.45746566]
[1646887694402,12.33526797,2604.3,2603.6,1.593429]
[1646887694603,12.33526797,2604.3,2603.7,0.08387711]
[1646887694847,12.33526797,2604.3,2603.8,1.593429]
[1646887695049,12.33526797,2604.3,2603.5,0.0851053]
[1646887695250,0.86526797,2604.3,2603.6,1.5934773]
[1646887695451,1.82616797,2604.3,2603.7,1.67252665]
[1646887695651,11.47,2604.2,2603.8,1.5934773]
[1646887695852,11.466721,2604.2,2603.8,1.5934773]
[1646887696454,11.466721,2604.2,2603.7,0.07904935]
[1646887696654,1.03762952,2603.9,2603.5,0.07531144]
[1646887696852,1.92196,2604.4,2603.6,1.59356098]
[1646887697052,13.39196,2604.4,2603.7,0.08764836]
[1646887697252,13.39196,2604.4,2603.8,1.59350037]
[1646887697453,14.39196,2604.4,2603.7,0.08764836]
[1646887697653,14.39196,2604.4,2603.5,0.07999206]
[1646887697852,1.23096224,2604.2,2603.5,0.07999206]
[1646887698252,1.23096224,2604.2,2603.4,0.07593262]
[1646887698696,12.47,2604.4,2603.4,0.07593262]
[1646887699204,11.47,2604.5,2603.7,0.011686]
[1646887699404,11.47,2604.5,2603.4,0.07689262]
[1646887699405,3.54609328,2604.4,2603.4,0.07689262]
[1646887699597,3.54609328,2604.4,2602.7,0.69057972]
[1646887699598,0.04103197,2604.2,2603.2,0.00096]
[1646887699797,11.47,2603.9,2603.4,1.12476606]
[1646887699997,11.47,2603.7,2603.4,1.12476606]
[1646887700298,11.47,2603.7,2602.8,0.08700942]
[1646887700499,11.47,2603.7,2602.8,0.08604942]
[1646887701304,6.1596,2604.2,2603.3,0.92459219]
[1646887701507,6.1596,2604.2,2603.7,0.011815]
[1646887701904,6.156463,2604.2,2603.4,0.08924465]
[1646887702343,12.52037963,2604.5,2603.9,1.30017332]
[1646887702545,12.52037963,2604.5,2603.3,0.44596]
[1646887702744,11.47,2604.3,2603.4,0.08198711]
[1646887702946,11.8459,2604.2,2603.2,0.00096]
[1646887703144,11.47,2604.2,2603.2,0.08721396]
[1646887703345,11.8459,2604.1,2603.2,0.08721396]
[1646887703745,11.8459,2604.1,2603.3,0.98305827]
[1646887703746,1.03589013,2603.9,2603.3,0.98305827]
[1646887703946,0.96098,2604.0,2603.4,0.08265744]
[1646887704147,0.050594,2604.6,2603.5,0.07623076]
[1646887704349,1.3759,2604.5,2603.5,0.07623076]
[1646887704549,0.3759,2604.5,2603.5,0.07623076]
[1646887704746,11.47,2604.4,2603.5,0.07623076]
[1646887704947,11.47,2604.4,2603.9,0.97509741]
[1646887705153,11.47,2604.4,2603.6,0.06998705]
[1646887705552,1.49564839,2604.5,2603.6,0.06998705]
[1646887705553,1.11974839,2604.5,2603.6,0.06998705]
[1646887705752,12.58974839,2604.5,2603.6,0.06998705]
[1646887706202,12.58974839,2604.5,2603.7,1.05692747]
[1646887706403,12.58974839,2604.5,2603.8,0.07380021]
[1646887706605,0.96085,2604.4,2603.8,0.07380021]
[1646887707607,11.47,2604.3,2603.6,0.08426788]
[1646887707807,1.33675,2604.4,2603.2,3.58401181]
[1646887707808,0.96096,2604.1,2603.2,3.58401181]
[1646887708007,0.96096,2604.1,2603.3,0.07197779]
[1646887708606,1.11029839,2604.0,2603.4,1.10976257]
[1646887708808,0.96096,2604.1,2604.0,0.58948838]
[1646887709008,0.96096,2604.1,2604.0,0.6777436]
[1646887709207,0.96096,2604.1,2604.0,0.58948838]
[1646887709847,12.43096,2604.1,2604.0,0.58948838]
[1646887710050,13.43096,2604.1,2604.0,0.58948838]
[1646887710553,13.427826,2604.1,2604.0,0.58948838]
[1646887711050,12.47987672,2604.1,2604.0,0.58948838]
[1646887711253,13.47987672,2604.1,2604.0,0.58948838]
[1646887711649,1.957826,2604.1,2604.0,0.58948838]
[1646887711851,12.427826,2604.1,2604.0,0.58948838]
[1646887712054,11.47,2604.1,2604.0,0.58948838]
[1646887712256,12.47,2604.1,2604.0,0.58948838]
[1646887712757,11.47,2604.3,2604.0,0.58948838]
[1646887712953,11.47,2604.5,2604.0,0.58948838]
[1646887713802,13.33468453,2604.5,2604.0,0.58948838]
[1646887714004,14.33468453,2604.5,2604.0,0.58948838]
[1646887714703,14.33153253,2604.5,2604.0,0.58948838]
[1646887714907,12.39206825,2604.1,2604.0,0.58948838]
[1646887715103,13.35307825,2604.1,2604.0,0.58948838]
[1646887715303,14.35307825,2604.1,2604.0,0.58948838]
[1646887715703,14.40153111,2604.1,2604.0,0.58948838]
[1646887716304,14.35307825,2604.1,2604.0,0.58948838]
[1646887716505,14.40516717,2604.1,2604.0,0.58948838]
[1646887716905,14.40201417,2604.1,2604.0,0.58948838]
[1646887717845,14.34992525,2604.1,2604.0,0.58948838]
[1646887718045,13.38891525,2604.1,2604.0,0.58948838]
[1646887718746,13.43960233,2604.1,2604.0,0.58948838]
[1646887718944,13.43644933,2604.1,2604.0,0.58948838]
[1646887719144,12.466848,2604.1,2604.0,0.58948838]
[1646887719346,12.43088,2604.3,2604.0,0.58948838]
[1646887719749,13.47655794,2604.3,2604.0,0.58948838]
[1646887720253,12.43088,2604.3,2604.0,0.58948838]
[1646887720450,12.43088,2604.3,2604.1,1.59355481]
[1646887720848,0.96081,2604.5,2604.1,1.59355481]
[1646887721100,0.96081,2604.5,2604.1,0.85175481]
[1646887721303,0.96081,2604.5,2604.0,0.58948838]
[1646887721304,0.05235704,2604.4,2604.0,0.58948838]
[1646887721499,0.04920404,2604.4,2604.0,0.58948838]
[1646887721699,11.51920404,2604.4,2604.0,0.58948838]
[1646887721900,11.47,2604.4,2604.0,0.58948838]
[1646887722099,13.6872924,2604.4,2604.0,0.58948838]
[1646887722699,12.6872924,2604.4,2604.0,0.58948838]
[1646887722906,13.6872924,2604.4,2604.0,0.58948838]
[1646887723901,13.6841404,2604.4,2604.0,0.58948838]
[1646887724301,11.466848,2604.3,2604.0,0.58948838]
[1646887724503,11.466848,2604.1,2604.0,0.58948838]
[1646887724948,12.466848,2604.1,2604.0,0.58948838]
[1646887726051,12.466848,2604.1,2603.2,0.00096]
[1646887726052,11.842748,2603.9,2603.2,0.00096]
[1646887726251,13.8490825,2603.9,2603.1,0.0730895]
[1646887726450,14.1490825,2603.9,2602.9,0.08739026]
[1646887726650,14.1490825,2603.9,2602.9,0.09809726]
[1646887726651,13.1878325,2603.9,2602.9,0.09809726]
[1646887726849,13.1878325,2603.9,2602.7,0.70320672]
[1646887726850,0.04698256,2603.8,2602.7,0.70320672]
[1646887727052,11.466848,2603.3,2603.0,0.011704]
[1646887727251,12.428198,2603.2,2602.8,0.07626999]
[1646887727451,12.428198,2603.2,2602.6,0.08073408]
[1646887727651,13.428198,2603.2,2602.6,0.08073408]
[1646887727851,13.425045,2603.2,2602.6,0.08073408]
[1646887728253,13.425045,2603.2,2602.6,0.09240208]
[1646887728896,12.428278,2602.9,2602.6,0.09240208]
[1646887729098,12.428278,2602.9,2602.6,0.011668]
[1646887729099,10.72788674,2602.9,2602.6,0.011668]
[1646887730103,9.76324774,2602.7,2602.2,0.08838069]
[1646887730302,9.76324774,2602.7,2602.2,0.08742069]
[1646887730504,9.76324774,2602.6,2602.0,0.08538756]
[1646887730702,9.76324774,2602.4,2602.0,0.08538756]
[1646887730910,9.76324774,2602.4,2601.7,0.69153972]
[1646887730911,9.76324774,2602.4,2601.7,0.09304538]
[1646887731105,9.76324774,2602.1,2601.7,0.09304538]
[1646887731304,9.76324774,2602.0,2601.5,1.97973007]
[1646887731704,10.76324774,2602.0,2601.3,0.07556956]
[1646887731906,1.0,2602.3,2601.4,0.70227372]
[1646887732107,6.6036,2602.6,2601.6,0.08830328]
[1646887732353,0.41523969,2602.5,2601.6,0.08830328]
[1646887732552,1.0,2602.6,2601.6,0.08830328]
[1646887732753,0.92287604,2602.4,2601.7,0.99260343]
[1646887732952,11.47,2602.1,2601.6,0.011723]
[1646887733352,12.8459,2602.1,2601.5,0.07601888]
[1646887733658,0.05110304,2602.0,2601.1,0.69153972]
[1646887733854,0.05110304,2602.0,2601.1,0.69057972]
[1646887734150,1.01295304,2602.0,2601.4,1.07685305]
[1646887734353,12.48295304,2602.0,2601.4,1.07685305]
[1646887734754,12.47,2602.0,2601.4,1.07685305]
[1646887734954,12.463618,2602.0,2601.4,1.07685305]
[1646887735156,14.38483991,2602.0,2601.4,1.07685305]
[1646887735353,14.76073991,2602.0,2601.4,0.011708]
[1646887735757,11.463618,2601.8,2601.4,0.011708]
[1646887736001,13.387448,2601.8,2601.4,0.011708]
[1646887736209,13.387448,2601.8,2601.0,0.00096]
[1646887736210,0.05078817,2601.7,2601.0,0.00096]
[1646887736407,11.839518,2601.6,2600.9,0.011667]
[1646887736603,11.839518,2601.6,2600.9,0.90894934]
[1646887736805,12.463618,2601.6,2600.9,0.90894934]
[1646887737005,12.839518,2601.6,2600.9,0.90894934]
[1646887737205,12.463618,2601.6,2600.9,0.90894934]
[1646887737608,11.47,2601.5,2600.9,0.80894934]
[1646887737808,12.47,2601.5,2600.9,0.80894934]
[1646887738007,12.8459,2601.5,2600.9,0.80894934]
[1646887738208,0.05394214,2601.4,2600.9,0.80894934]
[1646887738811,12.47,2601.5,2600.9,0.80894934]
[1646887739011,12.47,2601.5,2600.7,0.77464313]
[1646887739211,12.47,2601.5,2600.7,0.08406341]
[1646887739212,11.47,2601.3,2600.7,0.08406341]
[1646887739848,14.39406,2601.5,2600.7,0.08406341]
[1646887740049,12.53894226,2601.4,2600.7,1.23788856]
[1646887740246,12.53894226,2601.4,2600.8,0.07755852]
[1646887740649,11.47,2601.4,2600.8,0.07755852]
[1646887741055,14.39406,2601.5,2600.8,0.07755852]
[1646887741252,14.39406,2601.5,2600.9,1.66893183]
[1646887741459,14.39406,2601.5,2601.0,1.59491491]
[1646887741658,11.47,2601.5,2601.1,2.54867232]
[1646887741854,0.96195,2601.6,2601.2,1.59491491]
[1646887742056,11.47,2601.6,2601.2,1.59491491]
[1646887742453,0.27692768,2600.9,2600.7,3.87686]
[1646887742655,0.27692768,2600.9,2600.7,0.3759]
[1646887742853,0.27692768,2600.9,2600.5,0.69057972]
[1646887743059,0.27692768,2600.9,2600.6,5.52827972]
[1646887743254,0.27692768,2600.9,2600.6,2.99007842]
[1646887743496,11.47,2601.6,2601.2,1.20036571]
[1646887743703,11.47,2601.6,2600.9,0.55385536]
[1646887744599,0.96196,2601.4,2601.0,0.011753]
[1646887744801,1.05343479,2601.2,2601.0,0.011753]
[1646887745000,1.92389,2601.6,2601.0,0.011753]
[1646887745203,1.92389,2601.6,2601.0,3.887653]
[1646887745402,3.8477618,2602.2,2601.2,0.011816]
[1646887745403,6.1812,2602.2,2601.2,0.011816]
[1646887745605,10.3051,2602.2,2601.4,0.011811]
[1646887745805,11.47,2602.1,2601.4,0.011811]
[1646887746007,12.62835854,2601.9,2601.6,0.011833]
[1646887746205,12.62835854,2601.9,2601.4,0.08334955]
[1646887746406,12.43177,2601.8,2601.4,0.011811]
[1646887747250,13.43177,2601.8,2601.2,0.011816]
[1646887747452,1.96177,2601.8,2601.2,0.011816]
[1646887747954,3.1239,2602.2,2601.7,0.012071]
[1646887748152,3.1239,2602.2,2602.1,0.012029]
[1646887748352,12.00420314,2602.7,2602.1,0.012029]
[1646887748551,14.35547,2602.6,2602.1,0.012029]
[1646887748952,1.10584746,2602.5,2602.1,0.012029]
[1646887749452,0.96157,2602.4,2602.1,0.012029]
[1646887750253,2.88547,2602.6,2602.4,0.73929757]
[1646887750453,2.88547,2602.6,2602.4,0.82175011]
[1646887751104,3.27084697,2602.7,2602.4,0.82175011]
[1646887751105,3.27084697,2602.7,2602.5,0.08566545]
[1646887751307,3.1358,2602.7,2602.5,0.08566545]
[1646887751706,1.2056,2602.9,2602.5,0.08566545]
[1646887751903,1.92288,2603.0,2602.5,0.08566545]
[1646887752504,0.96135,2603.1,2602.5,0.08566545]
[1646887752908,0.96135,2603.1,2602.1,0.457989]
[1646887752909,11.47,2602.8,2601.5,0.96143]
[1646887753109,11.47,2602.6,2601.5,0.08298218]
[1646887753307,11.47,2602.6,2601.1,0.07145753]
[1646887753308,0.05046565,2602.5,2601.1,0.07145753]
[1646887753505,11.47,2602.4,2601.1,0.07145753]
[1646887753708,3.1614,2602.3,2601.2,1.3374355]
[1646887753906,3.1614,2602.3,2601.8,1.11348852]
[1646887754105,3.1614,2602.3,2601.9,0.08373051]
[1646887754950,14.6314,2602.3,2601.9,0.08373051]
[1646887755153,4.12301,2602.3,2601.8,1.11348852]
[1646887755769,4.12301,2602.3,2601.3,0.0797999]
[1646887756155,11.47,2602.2,2601.3,0.0797999]
[1646887756753,4.12301,2602.3,2601.6,1.01337115]
[1646887757355,15.59301,2602.3,2601.3,0.0797999]
[1646887757555,15.59301,2602.3,2601.2,0.08306348]
[1646887757753,15.59301,2602.3,2601.2,0.08210348]
[1646887758157,16.59301,2602.3,2601.2,0.08079711]
[1646887758359,2.04132527,2601.6,2601.2,0.08336518]
[1646887758597,0.96184,2601.6,2601.2,0.08336518]
[1646887759701,1.2304003,2601.7,2601.2,0.08336518]
[1646887760706,1.2304003,2601.7,2600.9,0.55385536]
[1646887760707,12.7004003,2601.7,2600.9,0.55385536]
[1646887761105,13.7004003,2601.7,2600.9,0.55385536]
[1646887761305,2.2304003,2601.7,2600.9,0.55385536]
[1646887761703,1.2304003,2601.7,2601.1,0.0640865]
[1646887762360,1.2304003,2601.7,2601.2,1.59504446]
[1646887763354,0.96188,2601.6,2601.2,1.59504446]
[1646887766107,0.96188,2601.6,2601.3,1.59504446]
[1646887766308,1.2304003,2601.7,2601.4,1.59504446]
[1646887766607,1.2304003,2601.7,2601.5,1.59502457]
[1646887766807,1.2304003,2601.7,2601.1,0.07754095]
[1646887767009,1.2304003,2601.7,2601.2,1.59501073]
[1646887767812,0.04666913,2601.6,2601.2,1.59501073]
[1646887768013,11.47,2601.5,2600.9,0.55385536]
[1646887768212,12.43207,2601.5,2601.0,1.59518519]
[1646887768409,13.43207,2601.5,2601.0,1.59518519]
[1646887768611,0.05079691,2601.4,2601.0,1.59518519]
[1646887768810,12.34375085,2601.2,2601.0,1.59518519]
[1646887769410,0.87375085,2601.2,2601.0,1.59518519]
[1646887769613,0.96215,2601.1,2601.0,1.59518519]
[1646887770257,2.79804085,2601.2,2601.0,1.59518519]
[1646887770258,13.52862438,2601.2,2601.0,1.59518519]